bitfinex-derivatives/quotes_ETHF0:USTF0_20250730
["timestamp","ask_amount","ask_price","bid_price","bid_amount"]
[1753900549022,0.52467,3812.1,3811.8,0.52469]
[1753900549222,3.2078,3812.8,3811.7,3.2078]
[1753900549422,0.52461,3812.5,3812.2,3.2078]
[1753900549622,3.73237,3812.8,3812.2,3.2078]
[1753900549928,3.2078,3812.8,3812.6,0.52458]
[1753900550228,3.2078,3813.4,3812.2,3.2078]
[1753900550424,0.52455,3812.9,3812.6,0.52458]
[1753900550628,3.2078,3813.4,3812.4,1.31154]
[1753900550817,0.52446,3813.6,3813.0,3.2078]
[1753900551022,0.52446,3813.6,3813.1,3.2078]
[1753900551225,0.52448,3813.4,3813.0,0.52452]
[1753900551421,3.2078,3813.8,3813.2,0.52449]
[1753900551623,3.2078,3813.8,3812.9,3.2078]
[1753900551821,1.31106,3813.8,3812.8,0.52455]
[1753900552022,0.52453,3813.1,3812.8,0.52455]
[1753900552224,3.2078,3813.2,3813.1,0.52452]
[1753900552528,0.52452,3813.1,3812.9,0.52453]
[1753900552731,3.2078,3813.2,3813.0,0.52452]
[1753900553029,0.52453,3813.0,3812.8,0.52455]
[1753900553329,0.52451,3813.2,3812.9,0.52453]
[1753900553928,3.2078,3813.6,3812.9,0.52453]
[1753900554126,0.52455,3812.9,3812.4,3.2078]
[1753900554523,0.5245,3813.3,3813.1,0.52451]
[1753900554724,3.2078,3813.6,3812.8,3.2078]
[1753900554725,0.52448,3813.4,3813.2,0.52449]
[1753900555119,3.2078,3813.6,3812.9,0.52454]
[1753900555732,3.2078,3813.6,3812.4,3.2078]
[1753900555919,3.2078,3813.6,3812.6,1.31147]
[1753900556231,0.52454,3813.0,3812.8,0.52455]
[1753900556424,1.31116,3813.5,3812.4,3.2078]
[1753900556625,0.52451,3813.2,3812.5,1.3115]
[1753900556817,0.52454,3813.0,3812.4,3.2078]
[1753900557323,3.2078,3813.2,3812.9,0.52454]
[1753900557532,0.52454,3813.0,3812.9,0.9977]
[1753900558326,0.52452,3813.1,3812.9,0.9977]
[1753900559030,0.52452,3813.1,3812.9,1.52223]
[1753900559530,0.52451,3813.2,3813.0,0.52453]
[1753900559833,0.52453,3813.0,3812.9,1.52224]
[1753900560026,0.52453,3813.1,3812.9,1.52224]
[1753900560227,0.52446,3813.5,3813.3,0.52448]
[1753900560426,0.5245,3813.3,3813.1,0.52451]
[1753900560731,3.2078,3813.6,3813.1,0.52451]
[1753900560928,3.2078,3814.0,3813.3,3.2078]
[1753900561130,0.5244,3814.0,3813.9,0.5244]
[1753900561632,0.52444,3813.7,3813.3,3.2078]
[1753900561828,0.52447,3813.5,3813.3,3.73228]
[1753900562036,0.52461,3812.4,3812.3,3.2078]
[1753900562235,0.52474,3811.6,3811.4,3.2078]
[1753900562529,3.2078,3811.7,3811.1,0.52479]
[1753900562827,0.52475,3811.5,3811.1,0.52479]
[1753900563036,0.52473,3811.6,3811.2,0.52477]
[1753900563240,0.52473,3811.6,3811.3,0.52476]
[1753900563428,3.2078,3811.7,3811.0,3.2078]
[1753900563628,0.52469,3811.9,3811.5,0.52474]
[1753900563932,3.2078,3812.3,3811.5,0.52474]
[1753900564132,0.52472,3811.6,3811.3,0.52476]
[1753900564431,1.31161,3812.2,3810.9,3.2078]
[1753900564631,3.2078,3811.9,3810.9,3.2078]
[1753900564833,3.2078,3811.9,3811.3,3.2078]
[1753900565030,3.2078,3812.4,3811.7,3.2078]
[1753900565332,3.2078,3812.4,3811.0,3.2078]
[1753900565534,3.2078,3812.4,3811.6,0.52472]
[1753900565723,0.52469,3811.8,3811.5,0.52473]
[1753900565927,3.2078,3812.4,3811.5,1.31185]
[1753900566123,0.52466,3812.1,3811.4,3.2078]
[1753900566333,0.52463,3812.3,3812.0,0.52466]
[1753900566531,0.52466,3812.1,3811.5,3.2078]
[1753900566734,0.52472,3811.6,3811.5,3.2078]
[1753900567034,1.31144,3812.7,3811.5,3.2078]
[1753900567236,0.52469,3811.8,3811.5,3.73253]
[1753900567437,0.52469,3811.9,3811.5,3.73253]
[1753900568030,3.2078,3812.4,3811.5,3.2078]
[1753900568235,0.52466,3812.1,3811.7,0.5247]
[1753900568435,0.52469,3811.9,3811.7,0.5247]
[1753900568730,1.31162,3812.2,3810.9,3.2078]
[1753900568937,3.2078,3812.0,3810.9,3.2078]
[1753900569132,0.52472,3811.7,3810.9,3.2078]
[1753900569324,0.52474,3811.5,3811.3,0.52476]
[1753900569529,0.5247,3811.8,3811.5,0.52472]
[1753900569837,3.2078,3812.0,3811.4,0.52474]
[1753900570029,3.2078,3812.0,3811.3,0.52475]
[1753900570230,0.52471,3811.7,3811.5,0.52473]
[1753900570733,0.52469,3811.9,3810.9,4.51982]
[1753900570936,3.2078,3812.0,3810.9,4.51982]
[1753900571536,0.52474,3811.5,3811.2,0.52478]
[1753900571733,0.52473,3811.6,3811.3,0.52475]
[1753900571938,0.52478,3811.3,3810.9,3.2078]
[1753900572236,0.52475,3811.5,3810.9,3.2078]
[1753900572435,3.2078,3811.6,3810.8,0.39361297]
[1753900572634,0.52482,3811.0,3810.8,0.91844297]
[1753900572834,3.2078,3811.6,3810.8,0.39361297]
[1753900573035,0.52479,3811.2,3810.9,0.52481]
[1753900573234,0.52479,3811.2,3811.0,0.52479]
[1753900573431,3.2078,3811.6,3810.8,0.39361297]
[1753900573636,3.2078,3811.6,3810.8,1.70568297]
[1753900573832,3.2078,3811.6,3810.8,0.39361297]
[1753900574135,0.52477,3811.3,3811.1,0.52478]
[1753900574736,1.31168,3812.0,3810.9,4.51984]
[1753900575228,1.31174,3811.8,3810.9,3.2078]
[1753900575434,3.2078,3811.7,3810.9,3.2078]
[1753900575628,3.2078,3812.1,3811.1,1.31198]
[1753900575828,3.2078,3812.5,3811.9,3.2078]
[1753900576135,0.52468,3812.0,3811.8,0.52468]
[1753900576433,0.52464,3812.3,3811.9,3.2078]
[1753900576629,0.52465,3812.2,3811.9,3.2078]
[1753900576832,4.51931,3812.5,3811.5,3.2078]
[1753900577137,4.51931,3812.5,3811.9,0.52467]
[1753900577332,4.51931,3812.5,3811.6,3.2078]
[1753900577739,0.52461,3812.4,3812.2,0.52463]
[1753900578240,1.31154,3812.4,3811.8,0.52469]
[1753900578438,0.52466,3812.1,3811.9,0.52467]
[1753900579038,0.52461,3812.4,3812.0,0.52466]
[1753900579340,0.52465,3812.2,3812.0,0.52465]
[1753900579535,0.52466,3812.1,3811.9,0.52467]
[1753900579736,0.52471,3811.7,3811.2,3.2078]
[1753900579937,0.52469,3811.9,3811.7,0.5247]
[1753900580539,1.31154,3812.4,3811.2,3.2078]
[1753900580735,0.52476,3811.4,3811.2,3.2078]
[1753900581240,1.31173,3811.9,3811.4,0.52475]
[1753900581443,3.2078,3812.1,3811.3,1.31191]
[1753900581744,0.52466,3812.1,3812.0,0.52467]
[1753900582040,0.52467,3812.1,3811.9,0.52467]
[1753900582232,44.0078,3812.6,3811.6,3.2078]
[1753900582437,0.52468,3812.0,3811.8,0.52468]
[1753900582631,1.31154,3812.4,3811.7,0.5247]
[1753900582632,0.52469,3811.8,3811.7,0.5247]
[1753900582836,1.31154,3812.4,3811.9,0.52467]
[1753900583039,0.52473,3811.6,3811.2,3.2078]
[1753900583239,0.52475,3811.5,3811.3,0.52475]
[1753900583848,1.31168,3812.0,3811.4,0.52475]
[1753900584037,1.31164,3812.1,3811.5,0.52473]
[1753900584438,0.52476,3811.4,3811.2,3.73257]
[1753900584642,0.52476,3811.4,3811.2,3.2078]
[1753900585139,0.52479,3811.2,3811.0,0.52479]
[1753900585443,3.2078,3811.8,3811.2,0.52477]
[1753900585644,0.52476,3811.4,3811.3,0.52476]
[1753900585838,0.52475,3811.5,3811.3,0.52476]
[1753900586036,3.2078,3811.8,3811.3,0.52476]
[1753900586037,0.52476,3811.4,3811.3,0.52476]
[1753900586338,1.31178,3811.7,3810.8,3.60141297]
[1753900586639,4.51955,3811.8,3810.9,1.31205]
[1753900586844,0.52473,3811.6,3811.5,0.52473]
[1753900587041,0.52473,3811.6,3811.4,0.52474]
[1753900587241,0.52475,3811.4,3811.3,0.52476]
[1753900587442,3.2078,3811.8,3811.4,0.52474]
[1753900587640,0.52473,3811.6,3811.5,0.52473]
[1753900587837,4.51955,3811.8,3810.9,4.51985]
[1753900588041,0.52473,3811.6,3811.4,0.52474]
[1753900588341,0.52476,3811.4,3811.3,0.52476]
[1753900588545,0.52474,3811.5,3811.3,0.52476]
[1753900589144,3.2078,3811.8,3811.0,1.31202]
[1753900589345,3.7325,3811.8,3811.6,0.52471]
[1753900589546,0.52473,3811.6,3811.5,0.52473]
[1753900589748,0.52473,3811.6,3811.4,0.52474]
[1753900589943,3.2078,3811.8,3811.4,0.52474]
[1753900590149,0.52469,3811.9,3811.7,0.5247]
[1753900590349,0.52466,3812.1,3811.9,0.52467]
[1753900591146,3.2078,3812.4,3811.3,4.51969]
[1753900591350,0.52461,3812.5,3811.8,1.31173]
[1753900591548,0.52466,3812.1,3812.0,0.52466]
[1753900591746,0.5247,3811.8,3811.4,3.2078]
[1753900591942,0.52471,3811.7,3811.5,0.52474]
[1753900592352,0.52469,3811.9,3811.7,0.52469]
[1753900592548,0.52471,3811.7,3811.5,0.52473]
[1753900593243,0.5247,3811.8,3811.7,0.52471]
[1753900593449,0.5247,3811.8,3811.6,0.52471]
[1753900593644,0.52473,3811.6,3811.5,0.52473]
[1753900593853,0.52473,3811.6,3811.4,0.52474]
[1753900594256,0.52472,3811.7,3811.6,0.52472]
[1753900594650,3.2078,3812.0,3811.4,0.52474]
[1753900594651,0.52475,3811.5,3811.4,0.52474]
[1753900595054,0.52475,3811.5,3811.3,3.2078]
[1753900595255,0.52478,3811.2,3811.0,0.52479]
[1753900595451,0.52477,3811.3,3811.2,0.52477]
[1753900595652,0.52477,3811.3,3811.1,0.52478]
[1753900595857,1.31171,3811.9,3811.3,0.52475]
[1753900596052,1.31171,3811.9,3811.4,0.52474]
[1753900596247,0.52465,3812.2,3811.7,4.51956]
[1753900596450,0.52465,3812.2,3812.1,3.2078]
[1753900597259,0.52463,3812.3,3812.1,3.2078]
[1753900597458,0.52468,3811.9,3811.5,3.2078]
[1753900597656,0.52467,3812.0,3811.8,0.52468]
[1753900597850,0.52469,3811.9,3811.7,0.5247]
[1753900598258,0.52467,3812.1,3811.7,0.5247]
[1753900598455,1.31157,3812.3,3811.5,3.2078]
[1753900598663,0.5247,3811.8,3811.5,3.73253]
[1753900598862,0.52472,3811.7,3811.5,3.2078]
[1753900599958,0.52476,3811.3,3811.2,0.52477]
[1753900600257,0.52476,3811.3,3810.8,1.70569297]
[1753900600258,0.52482,3810.9,3810.8,0.39361297]
[1753900601163,3.73262,3810.9,3810.8,0.39361297]
[1753900602857,0.52495,3809.9,3809.8,3.2078]
[1753900603065,3.2078,3810.5,3809.6,0.52499]
[1753900603465,3.2078,3810.5,3809.5,1.31253]
[1753900603669,3.73263,3810.9,3810.5,0.52486]
[1753900603869,3.2078,3810.9,3810.3,0.5249]
[1753900604056,3.2078,3810.9,3810.2,3.2078]
[1753900604260,3.2078,3810.9,3809.9,1.31236]
[1753900604466,0.52484,3810.8,3810.5,0.52486]
[1753900604666,3.2078,3810.9,3810.2,0.52491]
[1753900604862,0.52491,3810.2,3809.7,0.52497]
[1753900605169,3.2078,3810.3,3809.5,1.31253]
[1753900605367,3.7327,3810.3,3809.5,1.31253]
[1753900605664,3.2078,3809.9,3809.8,0.52497]
[1753900605864,1.31244,3809.8,3808.2,0.52518]
[1753900606075,1.31244,3809.8,3807.1,2.6267]
[1753900606076,3.2078,3808.8,3808.3,0.52517]
[1753900606266,0.52523,3807.9,3807.2,3.2078]
[1753900606466,0.52531,3807.4,3806.9,6.07749578]
[1753900606666,3.2078,3807.3,3806.0,3.2078]
[1753900606869,3.2078,3806.6,3806.0,3.2078]
[1753900607068,3.2078,3806.9,3806.0,4.52153]
[1753900607268,3.2078,3806.7,3806.0,3.2078]
[1753900607566,3.73326,3806.3,3805.6,3.2078]
[1753900607772,1.31337,3807.1,3804.9,0.52564]
[1753900607773,0.52555,3805.6,3804.9,0.52564]
[1753900607967,3.2078,3805.4,3804.8,0.39423368]
[1753900608464,3.2078,3805.0,3804.8,0.39423368]
[1753900608669,0.20830183,3805.7,3802.5,6.07749578]
[1753900608670,0.52584,3803.5,3802.5,6.07749578]
[1753900608868,40.8,3806.0,3802.2,0.21061864]
[1753900608869,3.2078,3803.2,3802.2,0.21061864]
[1753900609070,3.2078,3804.1,3802.7,3.2078]
[1753900609368,3.2078,3802.8,3802.1,3.73382]
[1753900609565,3.2078,3802.8,3801.7,3.2078]
[1753900609769,3.2078,3803.3,3802.3,3.2078]
[1753900609969,3.2078,3802.9,3802.1,3.2078]
[1753900610271,3.2078,3802.9,3801.7,3.2078]
[1753900610472,3.2078,3802.9,3802.2,0.526]
[1753900610671,3.2078,3802.9,3802.0,0.52604]
[1753900610869,0.52606,3801.9,3801.1,3.2078]
[1753900611067,3.2078,3802.1,3801.1,3.2078]
[1753900611068,3.73384,3802.1,3801.1,3.2078]
[1753900611267,3.73384,3802.1,3800.6,3.2078]
[1753900611570,3.2078,3802.1,3801.2,3.2078]
[1753900611764,0.52598,3802.5,3801.2,3.2078]
[1753900611966,3.2078,3801.9,3800.4,3.2078]
[1753900612265,3.2078,3801.9,3800.1,3.2078]
[1753900612464,3.2078,3801.9,3799.1,1.31611]
[1753900612465,3.2078,3801.9,3801.0,3.2078]
[1753900612669,8.2078,3801.9,3800.1,0.5263]
[1753900612869,8.2078,3801.9,3799.5,3.2078]
[1753900613072,3.2078,3800.6,3799.7,0.52636]
[1753900613366,3.2078,3800.6,3799.6,0.52638]
[1753900613561,0.52632,3800.1,3799.5,3.2078]
[1753900613773,3.2078,3800.6,3799.5,3.2078]
[1753900613970,3.2078,3799.6,3798.8,0.92133634]
[1753900614170,3.2078,3799.2,3798.8,0.39485634]
[1753900614469,37.84,3801.1,3798.8,0.39485634]
[1753900614470,3.2078,3800.4,3799.6,0.52637]
[1753900614664,3.2078,3800.0,3799.2,3.2078]
[1753900615063,3.2078,3799.4,3798.8,0.39485634]
[1753900615264,3.73421,3799.4,3798.8,0.39485634]
[1753900615463,3.73426,3799.0,3798.8,0.39485634]
[1753900615668,3.2078,3799.0,3798.8,0.39485634]
[1753900615871,0.52647,3798.9,3798.8,0.39485634]
[1753900616272,0.52647,3798.9,3796.8,3.2078]
[1753900616273,5.0,3798.9,3796.8,3.2078]
[1753900616467,3.2078,3797.7,3797.3,0.52669]
[1753900616667,3.2078,3798.1,3797.7,0.52664]
[1753900616969,3.2078,3798.9,3797.9,0.52661]
[1753900617171,3.2078,3798.9,3798.2,0.52657]
[1753900617368,3.73421,3799.4,3797.8,3.2078]
[1753900617572,3.2078,3799.0,3797.3,3.2078]
[1753900617767,0.52651,3798.7,3797.9,3.2078]
[1753900617975,3.2078,3798.3,3796.0,3.2078]
[1753900618163,3.2078,3797.1,3795.9,3.2078]
[1753900618371,3.2078,3797.2,3796.0,3.2078]
[1753900618568,3.2078,3797.2,3796.4,0.52681]
[1753900618769,3.2078,3797.7,3796.8,3.2078]
[1753900618967,18.914,3798.5,3797.7,0.52664]
[1753900618968,3.2078,3798.1,3797.7,0.52664]
[1753900619172,40.8,3798.4,3796.8,3.2078]
[1753900619374,3.2078,3797.9,3797.6,0.52664]
[1753900619673,0.52659,3798.1,3796.9,3.2078]
[1753900619875,3.2078,3798.0,3796.9,3.2078]
[1753900620068,3.2078,3798.6,3797.3,3.2078]
[1753900620275,3.2078,3798.6,3798.0,3.2078]
[1753900620571,3.2078,3799.2,3798.5,3.2078]
[1753900620768,3.2078,3798.8,3797.8,0.52661]
[1753900620972,44.0078,3799.9,3798.5,1.31633]
[1753900621272,3.2078,3800.6,3800.3,0.52627]
[1753900621478,26.27886,3805.5,3801.5,0.5261]
[1753900621479,0.52602,3802.2,3801.5,0.5261]
[1753900621678,0.52607,3801.9,3801.6,2.27926]
[1753900621880,3.2078,3801.8,3799.8,3.2078]
[1753900622175,3.2078,3801.4,3800.2,3.2078]
[1753900622379,3.2078,3801.0,3799.5,3.2078]
[1753900622673,3.2078,3801.0,3800.0,3.2078]
[1753900623165,3.2078,3801.0,3800.2,0.52628]
[1753900623367,3.2078,3801.0,3799.5,3.2078]
[1753900623368,0.52625,3800.6,3799.9,3.73413]
[1753900623566,3.2078,3801.0,3800.2,3.2078]
[1753900623772,3.73399,3801.0,3800.3,0.52628]
[1753900624076,1.31505,3802.2,3800.4,3.2078]
[1753900624077,3.2078,3801.1,3800.4,3.2078]
[1753900624278,0.52622,3800.8,3799.9,3.2078]
[1753900624476,0.52622,3800.8,3800.0,0.52632]
[1753900624668,0.52622,3800.8,3798.8,1.71106634]
[1753900624669,3.2078,3800.7,3799.8,3.2078]
[1753900625073,3.2078,3801.2,3800.2,3.2078]
[1753900625273,0.52617,3801.1,3800.3,0.52628]
[1753900625478,3.2078,3800.8,3799.3,3.2078]
[1753900625775,3.2078,3800.8,3799.8,3.2078]
[1753900625977,0.52639,3799.5,3799.0,3.2078]
[1753900626175,0.52639,3799.6,3799.3,3.2078]
[1753900626372,0.52647,3798.9,3798.8,0.39485634]
[1753900626571,3.2078,3799.1,3798.8,0.39485634]
[1753900626879,3.2078,3799.7,3798.8,3.60265634]
[1753900627082,0.52637,3799.7,3799.2,3.2078]
[1753900627269,3.2078,3800.2,3799.3,0.52642]
[1753900627471,0.5264,3799.5,3799.2,3.2078]
[1753900627772,3.2078,3799.8,3798.8,0.39485634]
[1753900627977,3.2078,3799.8,3799.2,3.2078]
[1753900628178,3.2078,3799.8,3799.5,0.52638]
[1753900628374,0.52636,3799.7,3798.9,0.52647]
[1753900628580,0.52636,3799.7,3799.0,0.52645]
[1753900628778,0.52638,3799.6,3799.1,0.52644]
[1753900628977,3.73415,3799.8,3798.9,0.52647]
[1753900629277,3.2078,3799.8,3799.2,0.52643]
[1753900629477,3.2078,3799.8,3798.8,0.39485634]
[1753900629782,0.52647,3799.0,3798.8,0.39485634]
[1753900630477,3.2078,3799.4,3798.8,0.39485634]
[1753900630781,0.52627,3800.4,3800.0,0.52632]
[1753900630970,23.70623,3801.1,3800.2,3.2078]
[1753900630971,3.73397,3801.1,3800.2,3.2078]
[1753900631170,3.2078,3801.1,3800.5,0.52625]
[1753900631374,3.2078,3801.1,3800.0,4.52358]
[1753900631574,3.2078,3801.1,3800.0,3.2078]
[1753900631779,3.2078,3801.1,3800.1,0.52631]
[1753900631978,3.73397,3801.1,3800.5,0.52625]
[1753900632178,3.73397,3801.1,3800.3,0.52627]
[1753900632380,3.2078,3801.1,3800.6,0.52623]
[1753900632576,3.2078,3800.7,3800.2,0.52629]
[1753900632780,3.2078,3800.7,3799.6,0.52637]
[1753900632781,0.5263,3800.2,3799.6,0.52637]
[1753900633083,3.2078,3801.1,3800.3,0.52627]
[1753900633276,3.2078,3801.1,3799.9,3.2078]
[1753900633475,3.2078,3801.1,3800.7,0.52621]
[1753900633674,3.2078,3801.1,3800.1,1.31577]
[1753900633675,3.2078,3801.1,3800.8,0.5262]
[1753900633877,3.2078,3801.1,3800.8,0.52621]
[1753900634076,3.2078,3801.1,3800.0,1.31578]
[1753900634281,0.52621,3800.9,3800.3,0.52628]
[1753900634474,0.5263,3800.2,3799.5,3.2078]
[1753900634680,3.2078,3799.9,3798.8,3.60265634]
[1753900634879,3.2078,3799.9,3798.9,3.2078]
[1753900635079,3.2078,3800.3,3799.4,3.2078]
[1753900635277,3.2078,3799.9,3799.0,0.52645]
[1753900635474,3.2078,3799.9,3798.8,3.60265634]
[1753900635677,0.52638,3799.6,3799.3,0.52642]
[1753900635886,0.5264,3799.4,3799.2,0.52643]
[1753900636080,3.2078,3799.9,3798.8,0.39485634]
[1753900636280,3.2078,3799.9,3799.3,0.5264]
[1753900636478,0.52635,3799.8,3799.5,0.52638]
[1753900636679,3.2078,3799.9,3799.7,0.52636]
[1753900636881,3.2078,3800.3,3800.2,0.52629]
[1753900637082,3.2078,3800.7,3799.9,1.31585]
[1753900637286,3.2078,3801.1,3800.0,3.2078]
[1753900637485,0.5262,3800.9,3800.0,3.2078]
[1753900637686,3.2078,3801.1,3800.7,0.52621]
[1753900638182,3.2078,3801.1,3800.1,1.31577]
[1753900638376,3.2078,3801.8,3801.1,0.52617]
[1753900638577,3.2078,3801.8,3800.7,1.31556]
[1753900638886,0.52612,3801.5,3800.5,3.2078]
[1753900639089,0.52615,3801.3,3800.8,0.5262]
[1753900639286,0.52609,3801.7,3800.6,1.3156]
[1753900639483,0.52611,3801.6,3801.0,0.52617]
[1753900639684,4.523,3801.8,3801.1,0.52616]
[1753900639881,0.52616,3801.2,3800.9,0.52619]
[1753900640083,0.52619,3801.0,3800.7,0.52621]
[1753900640278,3.2078,3801.4,3800.9,0.5262]
[1753900640479,3.2078,3802.4,3801.0,1.31546]
[1753900640781,0.52602,3802.2,3801.4,1.31529]
[1753900640981,0.52601,3802.3,3802.0,0.52604]
[1753900641182,0.52601,3802.3,3801.9,0.52605]
[1753900641381,0.52601,3802.3,3801.4,1.31529]
[1753900641382,0.526,3802.4,3802.1,0.52603]
[1753900641585,0.52598,3802.5,3802.1,0.52602]
[1753900641784,0.52601,3802.3,3801.9,0.52605]
[1753900642087,0.52598,3802.6,3802.3,0.526]
[1753900642283,0.52601,3802.3,3801.7,3.2078]
[1753900642489,0.5261,3801.6,3801.3,0.52614]
[1753900642785,1.31534,3801.4,3800.5,0.52625]
[1753900642983,0.52616,3801.2,3800.8,0.52621]
[1753900643180,3.2078,3801.7,3800.6,3.2078]
[1753900643378,3.2078,3801.7,3800.9,3.2078]
[1753900643580,0.52599,3802.4,3802.0,0.52604]
[1753900643779,3.2078,3802.5,3801.9,3.2078]
[1753900643780,0.52604,3802.0,3801.9,3.2078]
[1753900643989,0.52604,3802.1,3801.7,0.52608]
[1753900644290,0.52606,3802.0,3801.6,0.52609]
[1753900644589,0.52606,3802.0,3801.5,3.2078]
[1753900644590,1.31514,3802.0,3800.9,3.2078]
[1753900644888,0.52609,3801.7,3801.5,3.73391]
[1753900645082,0.52611,3801.6,3801.4,0.52612]
[1753900645289,0.52607,3801.9,3801.6,0.52609]
[1753900645486,0.52603,3802.2,3801.9,0.52605]
[1753900645685,0.52605,3802.0,3801.7,3.2078]
[1753900645882,0.52609,3801.7,3801.3,0.52613]
[1753900646086,0.52609,3801.7,3801.6,0.5261]
[1753900646386,0.52618,3801.0,3800.9,3.2078]
[1753900646688,0.38,3803.7,3799.9,1.31582]
[1753900646689,1.3153,3801.5,3799.9,1.31584]
[1753900646879,3.2078,3801.3,3800.2,3.2078]
[1753900647083,3.2078,3801.3,3801.0,0.52618]
[1753900647084,3.73395,3801.3,3801.0,0.52618]
[1753900647289,0.52617,3801.2,3801.1,0.52617]
[1753900647488,3.2078,3801.7,3800.8,3.2078]
[1753900647686,0.52613,3801.5,3800.9,3.2078]
[1753900647883,0.52614,3801.4,3801.1,3.2078]
[1753900648084,0.52614,3801.4,3801.2,0.52614]
[1753900648379,3.2078,3802.8,3801.1,3.2078]
[1753900648584,3.2078,3804.0,3802.7,1.31487]
[1753900648787,3.2078,3804.0,3803.5,0.52584]
[1753900648983,3.2078,3805.2,3803.4,3.2078]
[1753900649188,5.98324755,3805.4,3805.3,0.52559]
[1753900649385,0.52557,3805.5,3805.3,3.2078]
[1753900649594,3.2078,3806.3,3805.3,2.54050046]
[1753900649888,0.52544,3806.5,3805.1,1.31404]
[1753900650079,0.52546,3806.3,3805.7,0.52552]
[1753900650283,3.2078,3806.2,3805.4,3.2078]
[1753900650480,3.2078,3806.2,3805.7,0.52552]
[1753900650691,3.2078,3806.2,3805.4,3.2078]
[1753900651191,3.73327,3806.2,3805.4,3.2078]
[1753900651388,3.2078,3806.2,3806.0,0.52548]
[1753900651590,0.38,3806.7,3805.6,3.2078]
[1753900651786,0.52549,3806.1,3805.1,0.52561]
[1753900651986,0.52549,3806.1,3805.2,3.2078]
[1753900652186,0.38,3806.7,3805.0,0.52562]
[1753900652187,0.52552,3805.9,3805.0,0.52562]
[1753900652389,3.2078,3806.4,3804.4,3.2078]
[1753900652580,3.2078,3805.2,3804.0,3.2078]
[1753900652786,0.52573,3804.3,3804.0,3.2078]
[1753900652982,0.52573,3804.3,3803.9,3.2078]
[1753900653191,3.2078,3804.3,3802.6,3.2078]
[1753900653385,3.2078,3804.3,3803.2,3.2078]
[1753900653588,3.2078,3803.9,3802.2,19.311]
[1753900653782,0.52587,3803.3,3802.2,19.311]
[1753900654082,0.52587,3803.3,3802.5,3.2078]
[1753900654391,0.52587,3803.3,3802.9,3.2078]
[1753900654589,3.2078,3803.0,3802.3,0.52599]
[1753900654891,0.52593,3802.9,3802.2,0.52602]
[1753900655091,3.2078,3803.0,3802.6,0.52595]
[1753900655294,3.2078,3803.4,3802.6,3.73375]
[1753900655488,3.2078,3803.4,3801.9,39.19315]
[1753900655489,3.2078,3803.0,3802.1,3.2078]
[1753900655688,3.2078,3803.0,3801.9,37.878]
[1753900656291,0.526,3802.3,3801.9,37.878]
[1753900656491,3.2078,3803.0,3802.0,0.52604]
[1753900656690,0.52595,3802.7,3802.1,0.52602]
[1753900656886,3.2078,3803.0,3801.9,3.2078]
[1753900657092,3.2078,3802.4,3801.8,0.39454476]
[1753900657388,0.52597,3802.6,3802.1,0.52602]
[1753900657587,0.52605,3802.0,3801.8,0.39454476]
[1753900657785,3.2078,3801.9,3801.8,0.39454476]
[1753900658791,8.2078,3801.9,3801.8,4.76e-06]
[1753900659392,3.2078,3801.9,3801.8,4.76e-06]
[1753900659591,8.2078,3801.9,3801.8,4.76e-06]
[1753900659788,3.2078,3801.9,3801.8,4.76e-06]
[1753900659989,8.2078,3801.9,3801.8,4.76e-06]
[1753900660600,3.2078,3801.9,3801.8,4.76e-06]
[1753900661094,3.2078,3802.3,3801.8,0.52607476]
[1753900661295,3.2078,3802.7,3802.1,3.2078]
[1753900661496,3.2078,3803.0,3802.5,0.52597]
[1753900661694,3.2078,3803.0,3802.1,0.52602]
[1753900661890,3.2078,3803.0,3802.8,0.52593]
[1753900662100,3.2078,3803.0,3802.1,3.2078]
[1753900662290,3.73371,3803.0,3802.1,3.2078]
[1753900662598,3.2078,3803.0,3802.6,0.52595]
[1753900662899,0.52592,3802.9,3802.1,3.2078]
[1753900663094,3.2078,3802.6,3801.9,1.31513]
[1753900663300,3.2078,3802.6,3802.4,0.52598]
[1753900663496,3.73365,3803.4,3802.5,1.31492]
[1753900663701,0.52586,3803.3,3802.9,0.52592]
[1753900664000,3.2078,3803.4,3803.2,0.52587]
[1753900664597,0.52587,3803.3,3802.9,0.52591]
[1753900664801,3.2078,3803.4,3803.1,0.52589]
[1753900665196,3.2078,3803.4,3803.3,0.52586]
[1753900665997,3.2078,3803.4,3802.5,4.52275]
[1753900666192,3.2078,3803.0,3802.4,0.52599]
[1753900666396,3.2078,3802.6,3802.4,0.52598]
[1753900666901,3.73374,3802.8,3802.6,0.52595]
[1753900667096,3.2078,3802.8,3801.7,3.2078]
[1753900667297,3.2078,3802.8,3802.6,0.52596]
[1753900667696,3.2078,3802.8,3801.7,4.52302]
[1753900667996,3.73386,3802.0,3801.4,0.52612]
[1753900668199,3.2078,3802.0,3801.8,0.52607476]
[1753900668398,3.73386,3802.0,3801.8,4.76e-06]
[1753900668805,3.2078,3802.0,3801.8,4.76e-06]
[1753900669101,3.2078,3802.4,3802.1,0.52603]
[1753900669398,0.526,3802.3,3801.8,4.76e-06]
[1753900669607,0.526,3802.3,3801.9,0.52605]
[1753900669795,3.2078,3802.0,3801.8,4.76e-06]
[1753900670296,3.2078,3802.0,3801.8,0.52606476]
[1753900670496,3.2078,3802.0,3801.8,4.76e-06]
[1753900670698,3.73385,3802.0,3801.8,4.76e-06]
[1753900670895,3.2078,3802.0,3801.9,0.52606]
[1753900671300,3.73384,3802.0,3801.8,4.76e-06]
[1753900671898,3.2078,3802.0,3801.8,4.76e-06]